bitfinex/quotes_SOLUSD_20250514
["timestamp","ask_amount","ask_price","bid_price","bid_amount"]
[1747237835369,138.0,176.78,176.74,19.54]
[1747237835577,138.0,176.78,176.74,25.6356]
[1747237836796,143.65684677,176.78,176.74,25.6356]
[1747237838005,143.65684677,176.78,176.71,19.52]
[1747237838591,27.70265463,176.77,176.71,19.52]
[1747237838768,27.70265463,176.76,176.71,19.52]
[1747237838968,171.3595014,176.78,176.71,19.52]
[1747237839402,143.65684677,176.78,176.71,19.52]
[1747237839903,143.65684677,176.78,176.71,25.17883412]
[1747237840911,143.65684677,176.78,176.71,19.52]
[1747237841111,143.65684677,176.78,176.71,25.17894067]
[1747237841282,143.65684677,176.78,176.71,19.52]
[1747237842197,171.3595014,176.78,176.71,19.52]
[1747237843620,27.70265463,176.77,176.7,7.83216157]
[1747237843783,27.70265463,176.76,176.72,19.52]
[1747237844098,27.70265463,176.76,176.7,7.69]
[1747237844099,27.70265463,176.74,176.7,27.21]
[1747237844333,27.70265463,176.76,176.7,27.21]
[1747237844504,27.70265463,176.75,176.7,27.21]
[1747237845543,27.70265463,176.76,176.7,27.21]
[1747237845723,5.65770862,176.75,176.7,27.21]
[1747237846548,33.36036325,176.75,176.7,27.21]
[1747237846923,138.0,176.77,176.71,0.28432314]
[1747237847724,143.65709238,176.77,176.71,0.28432314]
[1747237848749,171.35974701,176.77,176.71,0.28432314]
[1747237849358,143.65709238,176.77,176.71,5.9433115]
[1747237849515,143.65709238,176.77,176.71,0.28432314]
[1747237850343,171.35974701,176.77,176.71,0.28432314]
[1747237851561,143.65709238,176.77,176.71,0.28432314]
[1747237851744,143.65709238,176.77,176.71,5.94319545]
[1747237852257,143.65709238,176.77,176.7,7.69]
[1747237852258,27.70265463,176.75,176.7,7.69]
[1747237852569,27.70265463,176.75,176.71,19.5]
[1747237852728,27.70265463,176.74,176.71,19.5]
[1747237853131,143.65709238,176.77,176.71,19.5]
[1747237854139,160.93826276,176.77,176.71,19.5]
[1747237854765,17.28117038,176.76,176.71,19.5]
[1747237855476,160.93826276,176.77,176.71,19.5]
[1747237855981,143.65709238,176.77,176.71,25.1589548]
[1747237857362,143.65709238,176.77,176.72,19.5]
[1747237857874,143.65709238,176.77,176.72,25.15861964]
[1747237858253,143.65709238,176.77,176.72,19.5]
[1747237861162,143.65709238,176.77,176.7,7.69]
[1747237861163,17.28117038,176.73,176.7,7.69]
[1747237861359,17.28117038,176.73,176.7,21.116]
[1747237861563,17.28117038,176.73,176.68,19.5]
[1747237861564,17.28117038,176.72,176.69,19.5]
[1747237861870,5.6589893,176.71,176.69,19.5]
[1747237863952,22.93983946,176.72,176.69,19.5]
[1747237864849,5.65802874,176.74,176.69,19.5]
[1747237865258,22.93919912,176.74,176.69,19.5]
[1747237865549,138.0,176.73,176.69,25.15957413]
[1747237865958,138.0,176.73,176.69,19.5]
[1747237866372,143.6584345,176.73,176.69,19.5]
[1747237866566,17.28117038,176.72,176.69,19.5]
[1747237866967,160.93960488,176.73,176.69,19.5]
[1747237868382,143.6584345,176.73,176.69,19.5]
[1747237868852,138.0,176.73,176.69,19.5]
[1747237869059,138.0,176.73,176.69,25.1596105]
[1747237869256,143.65840181,176.73,176.69,19.5]
[1747237870286,138.0,176.73,176.69,25.15959907]
[1747237870984,143.65839653,176.73,176.69,19.5]
[1747237871283,160.93956691,176.73,176.69,19.5]
[1747237871960,143.65839653,176.73,176.69,19.5]
[1747237872855,160.93956691,176.73,176.69,19.5]
[1747237873589,17.28117038,176.7,176.68,19.5]
[1747237873794,155.28117038,176.69,176.63,19.5]
[1747237873991,138.0,176.68,176.64,19.48]
[1747237874158,17.28117038,176.65,176.64,19.48]
[1747237874667,5.66027056,176.67,176.64,19.48]
[1747237875005,17.28117038,176.66,176.64,19.48]
[1747237875599,138.0,176.68,176.64,19.48]
[1747237876564,5.65940878,176.7,176.64,19.48]
[1747237876774,155.28117038,176.72,176.65,6.4001]
[1747237876961,5.65900316,176.71,176.65,6.4001]
[1747237877362,33.32889181,176.71,176.65,6.4001]
[1747237877688,27.66988865,176.7,176.65,6.4001]
[1747237878887,33.32889181,176.71,176.65,6.4001]
[1747237880262,138.0,176.7,176.65,6.4001]
[1747237880764,138.0,176.7,176.65,12.06096132]
[1747237881295,165.66988865,176.7,176.65,6.4001]
[1747237881461,27.66988865,176.69,176.65,6.4001]
[1747237881661,27.66988865,176.69,176.64,19.48]
[1747237881911,27.66988865,176.69,176.63,19.5]
[1747237882087,27.66988865,176.69,176.64,19.48]
[1747237882273,5.65995019,176.68,176.64,19.48]
[1747237883568,5.65973669,176.69,176.64,19.48]
[1747237883987,5.65973669,176.69,176.64,25.14121151]
[1747237884163,138.0,176.7,176.64,25.14121151]
[1747237885072,143.65938019,176.7,176.64,25.14121151]
[1747237885495,138.0,176.7,176.64,25.14121151]
[1747237885796,143.65934151,176.7,176.64,25.14121151]
[1747237886772,138.0,176.7,176.64,25.14121151]
[1747237887778,143.65944362,176.7,176.64,25.14121151]
[1747237887989,138.0,176.7,176.64,25.14121151]
[1747237889797,143.65939834,176.7,176.64,25.14121151]
[1747237891374,171.32928699,176.7,176.64,19.48]
[1747237891580,171.32928699,176.7,176.65,19.46]
[1747237892374,138.0,176.69,176.65,19.46]
[1747237893100,165.66988865,176.69,176.65,19.46]
[1747237893708,143.65995019,176.68,176.63,19.5]
[1747237894004,27.66988865,176.64,176.61,1.5263]
[1747237894832,27.66988865,176.65,176.61,1.5263]
[1747237895805,5.66123188,176.64,176.61,1.5263]
[1747237895978,5.66123188,176.64,176.61,20.9863]
[1747237896926,33.33112053,176.64,176.61,20.9863]
[1747237897274,33.33112053,176.64,176.61,1.5263]
[1747237897572,27.66988865,176.62,176.58,19.46]
[1747237897772,27.66988865,176.62,176.59,19.46]
[1747237897773,5.66219353,176.61,176.59,19.46]
[1747237899803,5.66187294,176.62,176.59,19.46]
[1747237900189,5.66187294,176.62,176.58,19.46]
[1747237900190,5.66187294,176.62,176.58,38.92]
[1747237902583,143.6616286,176.63,176.58,38.92]
[1747237902806,138.0,176.63,176.58,44.58311092]
[1747237903007,143.66169843,176.63,176.58,38.92]
[1747237903313,143.66161158,176.63,176.58,44.58309675]
[1747237903685,143.66161158,176.63,176.58,38.92]
[1747237905614,160.97299736,176.63,176.58,19.46]
[1747237907011,17.31138578,176.62,176.58,19.46]
[1747237907178,160.97299736,176.63,176.58,19.46]
[1747237907378,138.0,176.62,176.58,19.46]
[1747237908693,160.97353135,176.62,176.58,19.46]
[1747237909710,143.66214557,176.62,176.58,19.46]
[1747237911802,138.0,176.62,176.58,19.46]
[1747237912001,138.0,176.62,176.58,25.12315281]
[1747237912704,138.0,176.62,176.58,19.46]
[1747237913407,138.0,176.62,176.58,25.12313346]
[1747237916089,143.6619922,176.62,176.58,19.46]
[1747237916294,138.0,176.62,176.58,19.46]
[1747237916724,138.0,176.62,176.58,25.12309124]
[1747237917781,138.0,176.62,176.58,44.56309124]
[1747237920710,138.0,176.62,176.58,19.44]
[1747237920711,143.66210083,176.62,176.58,19.44]
[1747237920897,143.66210083,176.62,176.59,19.44]
[1747237923226,138.0,176.62,176.59,25.10266862]
[1747237923429,138.0,176.62,176.6,0.14216157]
[1747237923649,138.0,176.62,176.6,0.28432314]
[1747237923804,5.66064192,176.66,176.59,25.10266862]
[1747237923805,22.9720277,176.66,176.59,25.10266862]
[1747237927606,17.31138578,176.65,176.59,19.44]
[1747237928413,155.31138578,176.65,176.59,19.44]
[1747237928830,155.31138578,176.65,176.59,25.10282714]
[1747237929004,138.0,176.65,176.59,25.10282714]
[1747237929338,138.0,176.65,176.61,0.14216157]
[1747237929506,138.0,176.65,176.62,1.5125]
[1747237929707,138.0,176.65,176.63,5.66155239]
[1747237930235,138.0,176.69,176.63,5.66155239]
[1747237930440,138.0,176.69,176.65,6.0417]
[1747237930601,138.0,176.69,176.66,19.42]
[1747237933255,143.65970859,176.69,176.66,19.42]
[1747237933548,17.31138578,176.67,176.64,19.44]
[1747237933713,160.97197674,176.66,176.64,19.44]
[1747237934414,17.31138578,176.65,176.64,19.44]
[1747237934609,17.31138578,176.65,176.6,6.3346]
[1747237934849,17.31138578,176.63,176.61,19.42]
[1747237935042,17.31138578,176.62,176.61,19.42]
[1747237935355,17.31138578,176.62,176.59,19.44]
[1747237935529,17.31138578,176.61,176.59,19.44]
[1747237935717,22.97342159,176.62,176.59,19.44]
[1747237935919,155.31138578,176.64,176.59,25.10282442]
[1747237936153,160.97271244,176.64,176.59,19.44]
[1747237937122,17.31138578,176.63,176.59,19.44]
[1747237937453,17.31138578,176.62,176.59,19.44]
[1747237938271,17.31138578,176.62,176.58,19.42]
[1747237938568,17.31138578,176.59,176.56,19.44]
[1747237938727,17.31138578,176.58,176.56,38.84]
[1747237939249,17.31138578,176.57,176.56,19.44]
[1747237940326,22.97486202,176.57,176.56,19.44]
[1747237940930,22.97486202,176.57,176.53,19.4]
[1747237942446,5.66347624,176.57,176.53,19.4]
[1747237943741,22.97486202,176.57,176.53,19.4]
[1747237944231,5.66347624,176.57,176.53,19.4]
[1747237944431,22.97486202,176.57,176.53,19.4]
[1747237944739,155.31138578,176.56,176.52,20.9959]
[1747237944948,155.31138578,176.56,176.52,1.5959]
[1747237945250,155.31138578,176.56,176.52,20.9959]
[1747237945725,17.31138578,176.53,176.51,19.44]
[1747237946032,17.31138578,176.53,176.52,19.4]
[1747237946837,5.66458323,176.54,176.52,19.4]
[1747237947175,22.97553921,176.55,176.52,19.4]
[1747237947751,138.0,176.56,176.52,19.4]
[1747237948134,143.66381063,176.56,176.52,19.4]
[1747237948658,155.31138578,176.56,176.52,19.4]
[1747237949033,138.0,176.56,176.52,25.06496344]
[1747237949244,138.0,176.56,176.52,19.4]
[1747237951357,143.66385383,176.56,176.52,19.4]
[1747237952354,138.0,176.56,176.52,25.06507196]
[1747237952735,22.97325872,176.62,176.54,0.14216157]
[1747237952931,138.0,176.62,176.54,0.14216157]
[1747237953246,138.0,176.62,176.56,18.933972]
[1747237953448,138.0,176.62,176.57,19.4]
[1747237953660,138.0,176.62,176.58,19.4]
[1747237954044,138.0,176.62,176.59,0.39855072]
[1747237954355,143.66206896,176.62,176.59,0.39855072]
[1747237954539,138.0,176.62,176.59,0.39855072]
[1747237957150,138.0,176.62,176.59,6.06129624]
[1747237958972,138.0,176.62,176.59,0.39855072]
[1747237960075,138.0,176.69,176.61,26.0]
[1747237960368,138.0,176.68,176.61,26.0]
[1747237960969,138.0,176.68,176.62,5.66187294]
[1747237961148,160.97134501,176.68,176.62,5.66187294]
[1747237961352,160.97134501,176.68,176.61,31.66209205]
[1747237961549,17.31138578,176.67,176.61,5.66209205]
[1747237961959,160.97134501,176.68,176.61,5.66209205]
[1747237962474,17.31138578,176.67,176.6,13.66451408]
[1747237963073,143.65995923,176.68,176.6,13.66451408]
[1747237963370,17.31138578,176.67,176.6,13.66451408]
[1747237964076,155.31138578,176.68,176.6,13.66451408]
[1747237964255,138.0,176.68,176.63,26.0]
[1747237964568,138.0,176.68,176.64,19.38]
[1747237965347,138.0,176.68,176.64,25.0410319]
[1747237967262,143.65998524,176.68,176.64,19.38]
[1747237967870,143.65998524,176.68,176.63,19.38]
[1747237967871,160.97137102,176.68,176.63,19.38]
[1747237968053,160.97137102,176.68,176.64,19.36]
[1747237968772,138.0,176.68,176.64,19.36]
[1747237970563,143.65997619,176.68,176.64,19.36]
[1747237970773,160.97136197,176.68,176.64,19.36]
[1747237971894,155.31138578,176.67,176.63,19.38]
[1747237972052,17.31138578,176.64,176.6,1.5959]
[1747237972381,17.31138578,176.63,176.6,1.5959]
[1747237972553,138.0,176.66,176.6,7.25834363]
[1747237972955,138.0,176.66,176.61,0.28432314]
[1747237973976,143.66060873,176.66,176.61,0.28432314]
[1747237974160,143.66060873,176.66,176.62,19.36]
[1747237974878,160.97199451,176.66,176.62,19.36]
[1747237977385,143.66060873,176.66,176.62,19.36]
[1747237977784,138.0,176.66,176.62,19.36]
[1747237978884,138.0,176.66,176.61,25.04218639]
[1747237979080,138.0,176.66,176.62,19.34]
[1747237980800,138.0,176.66,176.62,25.00175496]
[1747237982099,138.0,176.66,176.63,25.356772]
[1747237982398,138.0,176.76,176.7,6.4228]
[1747237982597,138.0,176.76,176.71,26.54667695]
[1747237982958,143.65744254,176.76,176.71,20.8879]
[1747237983164,17.31138578,176.73,176.71,20.8879]
[1747237983397,17.31138578,176.74,176.71,20.8879]
[1747237984072,17.31138578,176.72,176.66,7.27483817]
[1747237984264,17.31138578,176.72,176.69,19.34]
[1747237984464,17.31138578,176.73,176.69,19.34]
[1747237985200,138.0,176.75,176.69,24.99962406]
[1747237987306,138.0,176.75,176.7,0.28432314]
[1747237987872,143.65597861,176.81,176.73,18.64964886]
[1747237988185,143.65597861,176.81,176.74,19.62432314]
[1747237988384,143.65597861,176.81,176.75,19.34]
[1747237988773,138.0,176.81,176.75,19.34]
[1747237988971,143.65585152,176.81,176.75,24.99764875]
[1747237989793,138.0,176.81,176.75,19.34]
[1747237990285,143.65607021,176.81,176.75,19.34]
[1747237991294,138.0,176.81,176.75,19.34]
[1747237992715,143.65591608,176.81,176.75,19.34]
[1747237993213,143.65591608,176.81,176.75,24.99761073]
[1747237993792,160.96730186,176.81,176.75,19.34]
[1747237994311,143.65588454,176.81,176.75,24.99767576]
[1747237994549,160.96727032,176.81,176.75,19.34]
[1747237995591,160.96727032,176.81,176.76,19.32]
[1747237995592,143.65588454,176.81,176.76,19.32]
[1747237995805,17.31138578,176.78,176.76,19.32]
[1747237996112,17.31138578,176.79,176.76,19.32]
[1747237996317,143.65588454,176.81,176.76,19.32]
[1747237996623,17.31138578,176.8,176.74,19.34]
[1747237996787,17.31138578,176.8,176.76,19.32]
[1747237997388,22.96753707,176.8,176.76,19.32]
[1747237999404,17.31138578,176.79,176.76,19.32]
[1747237999622,17.31138578,176.78,176.75,19.3]
[1747238000113,17.31138578,176.78,176.74,38.64]
[1747238000505,17.31138578,176.76,176.74,38.64]
[1747238000895,138.0,176.79,176.74,38.64]
[1747238001100,17.31138578,176.77,176.74,38.64]
[1747238001294,143.65656163,176.79,176.74,38.64]
[1747238001509,138.0,176.79,176.74,44.2978929]
[1747238001899,138.0,176.79,176.75,0.28432314]
[1747238003004,138.0,176.79,176.74,44.2978929]
[1747238003221,143.6564291,176.79,176.74,44.2978929]
[1747238003403,138.0,176.79,176.74,44.2978929]
[1747238004719,143.65653138,176.79,176.74,44.2978929]
[1747238004910,138.0,176.79,176.74,44.2978929]
[1747238005503,143.65652241,176.79,176.74,38.64]
[1747238005899,160.96790819,176.79,176.72,33.23777096]
[1747238006105,17.31138578,176.76,176.73,19.3]
[1747238007530,138.0,176.79,176.73,19.3]
[1747238007918,138.0,176.79,176.74,19.28]
[1747238008735,5.65505757,176.84,176.75,18.933972]
[1747238008908,5.65505757,176.84,176.77,0.28432314]
[1747238009106,143.6545621,176.85,176.77,18.933972]
[1747238009409,160.96594788,176.85,176.78,5.6567485]
[1747238009608,138.0,176.85,176.8,0.14216157]
[1747238009822,138.0,176.85,176.8,19.56432314]
[1747238010001,138.0,176.85,176.83,7.9942]
[1747238010206,22.96436464,176.9,176.83,7.9942]
[1747238010726,5.65297886,176.9,176.83,7.9942]
[1747238011118,5.65297886,176.9,176.84,0.39855073]
[1747238011426,22.96436464,176.9,176.85,19.3]
[1747238014620,17.31138578,176.89,176.85,19.3]
[1747238014820,17.31138578,176.89,176.86,0.18315596]
[1747238015935,5.65355042,176.88,176.86,0.18315596]
[1747238016423,5.65355042,176.88,176.86,19.46315596]
[1747238018044,5.65323082,176.89,176.86,19.46315596]
[1747238019013,22.9646166,176.89,176.86,19.46315596]
[1747238020134,5.65323082,176.89,176.86,19.46315596]
[1747238020944,17.31138578,176.89,176.86,19.46315596]
[1747238021241,17.31138578,176.9,176.86,19.46315596]
[1747238022231,14.13195173,176.91,176.86,19.46315596]
[1747238022432,17.31138578,176.9,176.86,19.46315596]
[1747238025225,5.65323082,176.89,176.86,19.46315596]
[1747238027150,143.65227221,176.92,176.86,19.46315596]
[1747238028021,160.96365799,176.92,176.86,19.46315596]
[1747238029256,143.65227221,176.92,176.86,25.11734555]
[1747238029629,138.0,176.92,176.87,0.28432314]
[1747238030043,5.65137595,176.95,176.89,0.28432314]
[1747238030243,22.96276173,176.95,176.89,0.28432314]
[1747238031635,22.96276173,176.95,176.89,5.93747201]
[1747238031831,22.96276173,176.95,176.89,0.28432314]
[1747238032158,22.96276173,176.95,176.89,5.93753334]
[1747238032465,143.65110898,176.96,176.91,6.6416]
[1747238032643,138.0,176.96,176.92,19.26]
[1747238034075,143.65103383,176.96,176.92,19.26]
[1747238034881,14.11979361,177.06,176.96,6.3143]
[1747238035032,17.31138578,177.0,176.96,44.8543]
[1747238035239,17.31138578,177.01,176.96,44.8543]
[1747238036838,17.31138578,177.03,176.96,50.50526118]
[1747238037037,17.31138578,177.04,176.96,50.50526118]
[1747238037238,22.9598913,177.04,176.96,50.50526118]
[1747238037853,17.31138578,177.03,176.96,50.50526118]
[1747238038054,22.96023788,177.03,176.96,50.50526118]
[1747238038364,17.31138578,177.04,176.97,0.28432314]
[1747238039594,17.31138578,177.04,176.98,5.65035597]
[1747238040152,8.59248573,177.05,176.98,5.65035597]
[1747238040471,155.31138578,177.04,176.98,5.65035597]
[1747238041467,17.31138578,177.03,176.97,5.65059714]
[1747238041654,17.31138578,177.03,176.96,44.8543]
[1747238041861,17.31138578,177.02,176.96,44.8543]
[1747238042365,17.31138578,177.01,176.96,44.8543]
[1747238042668,17.31138578,177.03,176.96,50.5052203]
[1747238043483,22.96029097,177.03,176.96,50.5052203]
[1747238043786,160.95996357,177.04,176.96,50.5052203]
[1747238044079,160.95985483,177.04,176.97,0.28432314]
[1747238044376,17.31138578,177.02,176.97,0.28432314]
[1747238045057,17.31138578,177.03,176.97,0.28432314]
[1747238045257,17.31138578,177.03,176.97,5.93489881]
[1747238045258,22.96025418,177.03,176.97,5.93489881]
[1747238045873,17.31138578,177.01,176.96,6.3143]
[1747238046192,17.31138578,176.99,176.94,38.48]
[1747238046375,138.0,177.02,176.94,38.48]
[1747238046566,17.31138578,177.01,176.94,38.48]
[1747238046766,17.31138578,177.01,176.95,0.28432314]
[1747238047121,17.31138578,176.98,176.94,38.48]
[1747238047275,22.96223748,176.97,176.94,38.48]
[1747238047467,22.96178545,176.98,176.94,38.48]
[1747238048485,17.31138578,176.95,176.91,25.5504]
[1747238049277,22.96298979,176.95,176.91,25.5504]
[1747238049451,17.31138578,176.93,176.91,19.24]
[1747238051083,17.31138578,176.92,176.91,19.24]
[1747238051273,5.65259171,176.91,176.87,25.6786]
[1747238051586,22.96397749,176.91,176.87,25.6786]
[1747238051790,22.96397749,176.91,176.87,6.4386]
[1747238052481,17.31138578,176.91,176.87,6.4386]
[1747238053062,5.65163332,176.94,176.87,6.4386]
[1747238053372,138.0,176.96,176.87,6.4386]
[1747238053373,17.31138578,176.92,176.88,0.16373927]
[1747238054369,22.96367831,176.92,176.88,0.16373927]
[1747238055898,17.31138578,176.92,176.88,0.16373927]
[1747238056287,5.65204547,176.93,176.88,0.16373927]
[1747238056288,17.31138578,176.89,176.88,0.16373927]
[1747238057525,22.9646166,176.89,176.88,0.16373927]
[1747238063803,22.9646166,176.89,176.88,0.16373927]
[1747238066411,25.91191477,176.89,176.88,0.16373927]
[1747238066592,26.0,176.86,176.79,211.5]
[1747238066793,17.31138578,176.8,176.78,44.9811]
[1747238067515,17.31138578,176.81,176.78,44.9811]
[1747238068596,22.96719384,176.81,176.78,44.9811]
[1747238070818,22.96719384,176.81,176.79,0.39855072]
[1747238071901,17.31138578,176.81,176.79,0.39855072]
[1747238073023,22.96659511,176.83,176.79,0.39855072]
[1747238073203,5.65520933,176.83,176.79,0.39855072]
[1747238074124,17.31138578,176.82,176.79,0.39855072]
[1747238074306,22.96749437,176.8,176.79,0.39855072]
[1747238078045,48.96749437,176.8,176.79,0.39855072]
[1747238086608,51.91609389,176.8,176.79,0.39855072]
[1747238087746,34.60470811,176.8,176.79,0.39855072]
[1747238088120,51.91609389,176.8,176.79,0.39855072]
[1747238088509,22.96727777,176.81,176.79,0.39855072]
[1747238089233,17.31138578,176.8,176.79,0.39855072]
[1747238089540,22.96749437,176.8,176.79,0.39855072]
[1747238099914,5.65610859,176.8,176.79,0.39855072]
[1747238100223,5.65546883,176.82,176.79,0.39855072]
[1747238100419,22.96685461,176.82,176.79,0.39855072]
[1747238101043,25.91431934,176.83,176.79,0.39855072]
[1747238101256,14.13585521,176.86,176.79,1.97055072]
[1747238101257,17.31138578,176.85,176.79,1.97055072]
[1747238101450,5.65492118,176.84,176.79,1.97055072]
[1747238102056,5.65492118,176.84,176.79,7.62694724]
[1747238102357,22.96601614,176.85,176.79,1.97055072]
[1747238102524,22.96601614,176.85,176.79,21.15055072]
[1747238104049,22.96601614,176.85,176.79,26.80686747]
[1747238104351,143.65463036,176.85,176.79,26.80686747]
[1747238104539,160.96601614,176.85,176.79,26.80686747]
[1747238104749,160.96601614,176.85,176.79,21.15055072]
[1747238104930,160.96601614,176.85,176.79,26.80695449]
[1747238105130,143.65463036,176.85,176.79,26.80695449]
[1747238105622,160.96601614,176.85,176.79,21.15055072]
[1747238106341,160.96601614,176.85,176.79,26.80696189]
[1747238106731,160.96601614,176.85,176.79,21.15055072]
[1747238107058,17.31138578,176.83,176.79,21.15055072]
[1747238107544,22.96666351,176.83,176.79,21.15055072]
[1747238107853,22.9662697,176.84,176.79,21.15055072]
[1747238108031,160.96591069,176.85,176.79,26.80674146]
[1747238108445,143.65452491,176.85,176.79,26.80674146]
[1747238108762,160.96591069,176.85,176.79,26.80674146]
[1747238109852,155.31138578,176.85,176.79,26.80674146]
[1747238110056,138.0,176.85,176.81,0.28432314]
[1747238110432,138.0,176.85,176.82,0.39855072]
[1747238110753,160.96457469,176.9,176.83,1.6196]
[1747238111069,138.0,176.89,176.84,19.18]
[1747238112553,138.0,176.89,176.85,19.18]
[1747238112769,138.0,176.89,176.86,6.4845]
[1747238113347,138.0,176.93,176.86,6.4845]
[1747238113532,138.0,176.93,176.88,1.5684]
[1747238115743,138.0,176.93,176.89,0.28432314]
[1747238116053,138.0,176.93,176.9,19.16]
[1747238116858,143.6519565,176.93,176.9,19.16]
[1747238117545,138.0,176.93,176.9,19.16]
[1747238121079,143.65195613,176.93,176.9,19.16]
[1747238121248,138.0,176.93,176.9,19.16]
[1747238121644,143.65205161,176.93,176.9,19.16]
[1747238123894,138.0,176.93,176.9,19.16]
[1747238124814,143.65206357,176.93,176.9,19.16]
[1747238125121,160.96344935,176.93,176.9,19.16]
[1747238126392,155.31138578,176.93,176.9,19.16]
[1747238128931,155.31138578,176.93,176.88,7.22192848]
[1747238129099,155.31138578,176.93,176.88,26.36192848]
[1747238129433,138.0,176.93,176.88,26.36192848]
[1747238129604,138.0,176.93,176.89,0.28432314]
[1747238130032,138.0,176.93,176.9,5.65291124]
[1747238130424,138.0,176.93,176.89,5.93744916]
[1747238132325,138.0,176.93,176.9,19.14]
[1747238133276,143.65198884,176.93,176.9,19.14]
[1747238133595,17.31138578,176.91,176.88,1.5684]
[1747238133855,17.31138578,176.89,176.86,6.4845]
[1747238134065,155.31138578,176.9,176.86,6.4845]
[1747238134953,5.65323082,176.89,176.86,6.4845]
[1747238135535,17.31138578,176.87,176.85,19.18]
[1747238137169,22.9654705,176.87,176.85,19.18]
[1747238137371,17.31138578,176.86,176.85,19.18]
[1747238137830,5.65408472,176.87,176.85,19.18]
[1747238137831,17.31138578,176.87,176.85,19.18]
[1747238138031,155.31138578,176.88,176.85,19.18]
[1747238138253,138.0,176.88,176.85,19.18]
[1747238138631,138.0,176.88,176.85,24.83444156]
[1747238142224,138.0,176.88,176.85,19.18]
[1747238143457,138.0,176.88,176.85,24.83443439]
[1747238144030,140.94636878,176.93,176.85,24.83443439]
[1747238144237,143.65252022,176.92,176.85,24.83443439]
[1747238144444,160.963906,176.92,176.85,24.83443439]
[1747238144738,143.65252022,176.92,176.85,24.83443439]
[1747238145458,138.0,176.92,176.85,24.83443439]
[1747238147444,138.0,176.92,176.87,5.65387007]
[1747238147769,138.0,176.92,176.88,19.12]
[1747238148255,143.65229413,176.92,176.88,19.12]
[1747238148453,138.0,176.92,176.88,19.12]
[1747238148835,155.31138578,176.96,176.89,6.18806157]
[1747238149038,138.0,176.96,176.9,1.5981]
[1747238149467,138.0,176.96,176.91,5.65259171]
[1747238150084,138.0,176.96,176.91,24.79259171]
[1747238150242,143.65101581,176.96,176.91,19.14]
[1747238152591,143.65101581,176.96,176.91,24.79259132]
[1747238153140,143.65101581,176.96,176.91,19.14]
[1747238153641,138.0,176.96,176.91,24.79251798]
[1747238154662,143.65108313,176.96,176.91,19.14]
[1747238154871,143.65108313,176.96,176.91,24.79254234]
[1747238155271,138.0,176.96,176.91,24.79254234]
[1747238157287,138.0,176.96,176.92,0.14216157]
[1747238157596,138.0,176.96,176.92,0.28432314]
[1747238159083,138.0,176.96,176.94,18.933972]
[1747238159387,22.96050761,177.02,176.95,25.6543]
[1747238159559,22.96050761,177.02,176.96,1.5243]
[1747238159932,5.64912183,177.02,176.96,1.5243]
[1747238160256,138.0,177.03,176.97,0.28432314]
[1747238160586,143.64878072,177.03,176.97,19.36432314]
[1747238160754,160.9601665,177.03,176.97,19.36432314]
[1747238161686,143.64878072,177.03,176.97,19.36432314]
[1747238162157,160.9601665,177.03,176.97,19.36432314]
[1747238165302,17.31138578,177.02,176.97,19.08]
[1747238165486,17.31138578,177.02,176.97,38.16]
[1747238166805,5.64939833,177.01,176.97,38.16]
[1747238168077,143.64907362,177.03,176.98,0.28432314]
[1747238169202,143.64907362,177.03,176.98,5.93467887]
[1747238169886,143.64907362,177.03,176.98,0.28432314]
[1747238170098,143.64907362,177.03,176.98,5.93462343]
[1747238170498,138.0,177.03,176.98,5.93462343]
[1747238170699,5.64772293,177.07,177.0,0.14216157]
[1747238170878,5.64772293,177.07,177.0,4.70889927]
[1747238171207,143.64719606,177.08,177.02,5.93340234]
[1747238171378,138.0,177.08,177.03,19.08]
[1747238171977,143.64718096,177.08,177.03,19.08]
[1747238173010,160.95856674,177.08,177.03,19.08]
[1747238175429,143.64718096,177.08,177.03,19.08]
[1747238176979,160.95856674,177.08,177.03,19.08]
[1747238178301,143.64718096,177.08,177.03,19.08]